[Event "14e Open International de Quenza"]
[Site "Quenza, France"]
[Date "????.??.??"]
[Round "2.12"]
[White "Mullon, Jean-Baptiste"]
[Black "Cardenas Yebra, Antoni"]
[Result "1-0"]
[TimeControl "5min+3s"]
[WhiteElo "2277"]
[BlackElo "1866"]

1. e4 {[%clk 00:05:03]} {[%emt 00:00:01]} d6 {[%clk 00:05:03]} {[%emt
00:00:01]} 2. d4 {[%clk 00:05:03]} {[%emt 00:00:01]} Nf6 {[%clk 00:05:03]} 3.
Nc3 {[%clk 00:05:03]} {[%emt 00:00:01]} c6 {[%clk 00:05:03]} {[%emt 00:00:01]}
4. f4 {[%clk 00:04:57]} {[%emt 00:00:10]} g6 {[%clk 00:05:03]} {[%emt
00:00:02]} 5. Nf3 {[%clk 00:04:39]} {[%emt 00:00:20]} Bg7 {[%clk 00:05:01]}
{[%emt 00:00:06]} 6. Bd3 {[%clk 00:04:26]} {[%emt 00:00:15]} O-O {[%clk
00:04:59]} {[%emt 00:00:05]} 7. O-O {[%clk 00:04:26]} {[%emt 00:00:03]} e5
{[%clk 00:04:43]} {[%emt 00:00:19]} 8. dxe5 {[%clk 00:04:18]} {[%emt 00:00:11]}
dxe5 {[%clk 00:04:43]} {[%emt 00:00:02]} 9. Nxe5 {[%clk 00:04:16]} {[%emt
00:00:05]} Qb6+ {[%clk 00:04:43]} {[%emt 00:00:02]} 10. Kh1 {[%clk 00:04:16]}
{[%emt 00:00:01]} Nbd7 {[%clk 00:04:40]} {[%emt 00:00:06]} 11. Nc4 {[%clk
00:04:15]} {[%emt 00:00:04]} Qc5 {[%clk 00:04:34]} {[%emt 00:00:09]} 12. Be3
{[%clk 00:04:05]} {[%emt 00:00:13]} Qh5 {[%clk 00:04:33]} {[%emt 00:00:03]} 13.
Qxh5 {[%clk 00:04:01]} {[%emt 00:00:04]} Nxh5 {[%clk 00:04:33]} 14. e5 {[%clk
00:04:03]} {[%emt 00:00:03]} b5 {[%clk 00:04:12]} {[%emt 00:00:24]} 15. Nd6
{[%clk 00:04:03]} {[%emt 00:00:03]} Nb6 {[%clk 00:04:10]} {[%emt 00:00:06]} 16.
Be4 {[%clk 00:03:57]} {[%emt 00:00:10]} Rb8 {[%clk 00:04:04]} {[%emt 00:00:09]}
17. Bxc6 {[%clk 00:03:53]} {[%emt 00:00:07]} Be6 {[%clk 00:03:58]} {[%emt
00:00:09]} 18. Bxb5 {[%clk 00:03:53]} {[%emt 00:00:02]} Nd5 {[%clk 00:03:50]}
{[%emt 00:00:10]} 19. Nxd5 {[%clk 00:03:47]} {[%emt 00:00:09]} Bxd5 {[%clk
00:03:50]} {[%emt 00:00:01]} 20. Bxa7 {[%clk 00:03:47]} {[%emt 00:00:02]} Ra8
{[%clk 00:03:26]} {[%emt 00:00:27]} 21. Bc5 {[%clk 00:03:44]} {[%emt 00:00:05]}
Rfb8 {[%clk 00:03:24]} {[%emt 00:00:06]} 22. c4 {[%clk 00:03:38]} {[%emt
00:00:09]} Be6 {[%clk 00:02:58]} {[%emt 00:00:29]} 23. a4 {[%clk 00:03:38]}
{[%emt 00:00:01]} Bf8 {[%clk 00:02:55]} {[%emt 00:00:06]} 24. b4 {[%clk
00:03:35]} {[%emt 00:00:06]} Bxd6 {[%clk 00:02:45]} {[%emt 00:00:13]} 25. Bxd6
{[%clk 00:03:35]} {[%emt 00:00:02]} Rc8 {[%clk 00:02:35]} {[%emt 00:00:13]} 26.
c5 {[%clk 00:03:35]} {[%emt 00:00:01]} 1-0

[Event "14e Open International de Quenza"]
[Site "Quenza, France"]
[Date "????.??.??"]
[Round "3.1"]
[White "Dardha, Daniel"]
[Black "De Ieso, Lorenzo"]
[Result "1-0"]
[TimeControl "5min+3s"]
[WhiteElo "2627"]
[BlackElo "2080"]

1. Nf3 {[%clk 00:05:03]} {[%emt 00:00:02]} Nf6 {[%clk 00:05:03]} {[%emt
00:00:01]} 2. c4 {[%clk 00:05:03]} {[%emt 00:00:02]} e6 {[%clk 00:05:03]}
{[%emt 00:00:02]} 3. Nc3 {[%clk 00:05:03]} {[%emt 00:00:02]} d5 4. e3 {[%emt
00:00:01]} Be7 {[%clk 00:05:03]} {[%emt 00:00:03]} 5. b3 {[%clk 00:05:03]}
{[%emt 00:00:01]} b6 {[%clk 00:05:03]} {[%emt 00:00:02]} 6. Bb2 {[%clk
00:05:03]} {[%emt 00:00:01]} Bb7 {[%clk 00:05:03]} {[%emt 00:00:01]} 7. cxd5
{[%clk 00:05:03]} {[%emt 00:00:01]} exd5 {[%clk 00:05:01]} {[%emt 00:00:06]} 8.
Ne2 {[%clk 00:05:01]} {[%emt 00:00:05]} O-O {[%clk 00:04:54]} {[%emt 00:00:10]}
9. g3 {[%clk 00:04:57]} {[%emt 00:00:07]} Re8 {[%clk 00:04:16]} {[%emt
00:00:41]} 10. Bg2 {[%clk 00:04:57]} Ne4 {[%clk 00:04:10]} {[%emt 00:00:10]} 11.
O-O {[%clk 00:04:56]} {[%emt 00:00:04]} Bf6 {[%clk 00:04:10]} {[%emt 00:00:02]}
12. Bxf6 {[%clk 00:04:53]} {[%emt 00:00:06]} Nxf6 {[%clk 00:04:10]} {[%emt
00:00:02]} 13. Nf4 {[%clk 00:04:49]} {[%emt 00:00:07]} Nbd7 {[%clk 00:04:04]}
{[%emt 00:00:09]} 14. b4 {[%clk 00:04:49]} {[%emt 00:00:01]} Ne5 {[%clk
00:03:38]} {[%emt 00:00:29]} 15. Nxe5 {[%clk 00:04:47]} {[%emt 00:00:04]} Rxe5
{[%clk 00:03:38]} {[%emt 00:00:01]} 16. b5 {[%clk 00:04:42]} {[%emt 00:00:08]}
a6 {[%clk 00:03:27]} {[%emt 00:00:15]} 17. a4 {[%clk 00:04:42]} {[%emt
00:00:03]} Qd7 {[%clk 00:03:13]} {[%emt 00:00:17]} 18. Qb3 {[%clk 00:04:41]}
{[%emt 00:00:05]} Ne4 {[%clk 00:03:05]} {[%emt 00:00:11]} 19. Qb2 {[%clk
00:04:37]} {[%emt 00:00:06]} Rd8 {[%clk 00:02:50]} {[%emt 00:00:18]} 20. Qxe5
{[%emt 00:00:02]} 1-0

[Event "14e Open International de Quenza"]
[Site "Quenza, France"]
[Date "????.??.??"]
[Round "3.2"]
[White "Rogoz, Vladyslav"]
[Black "Bellahcene, Bilel"]
[Result "0-1"]
[TimeControl "5min+3s"]
[WhiteElo "2108"]
[BlackElo "2513"]

1. d4 {[%clk 00:05:03]} {[%emt 00:12:38]} Nf6 {[%clk 00:05:03]} {[%emt
00:00:01]} 2. c4 {[%clk 00:05:03]} {[%emt 00:00:02]} e6 {[%clk 00:05:03]} 3.
Nf3 {[%clk 00:05:03]} {[%emt 00:00:02]} b6 {[%clk 00:05:03]} {[%emt 00:00:04]}
4. g3 {[%clk 00:05:03]} {[%emt 00:00:02]} Bb7 {[%clk 00:05:03]} 5. Bg2 {[%clk
00:05:03]} Bb4+ {[%clk 00:05:03]} {[%emt 00:00:02]} 6. Bd2 {[%clk 00:05:03]}
{[%emt 00:00:02]} Be7 {[%clk 00:05:03]} {[%emt 00:00:02]} 7. O-O {[%clk
00:05:03]} {[%emt 00:00:02]} c6 {[%clk 00:05:03]} 8. Nc3 {[%clk 00:05:03]}
{[%emt 00:00:02]} d5 {[%clk 00:05:03]} {[%emt 00:00:01]} 9. cxd5 {[%clk
00:04:56]} {[%emt 00:00:11]} cxd5 {[%emt 00:00:01]} 10. Rc1 {[%clk 00:04:56]}
{[%emt 00:00:01]} O-O {[%clk 00:05:03]} {[%emt 00:00:02]} 11. Re1 {[%clk
00:04:51]} {[%emt 00:00:08]} Nc6 {[%clk 00:05:00]} {[%emt 00:00:06]} 12. a3
{[%clk 00:04:39]} {[%emt 00:00:15]} a6 {[%clk 00:05:00]} {[%emt 00:00:02]} 13.
b4 {[%clk 00:04:39]} {[%emt 00:00:03]} Rc8 {[%clk 00:04:58]} {[%emt 00:00:04]}
14. Qb3 {[%clk 00:04:39]} {[%emt 00:00:02]} Ne8 {[%clk 00:04:45]} {[%emt
00:00:16]} 15. Bf4 {[%clk 00:03:32]} {[%emt 00:01:10]} g5 {[%clk 00:04:38]}
{[%emt 00:00:10]} 16. Be3 {[%clk 00:03:23]} {[%emt 00:00:12]} Nd6 {[%clk
00:04:37]} {[%emt 00:00:04]} 17. Ne5 {[%clk 00:03:23]} {[%emt 00:00:03]} Nb8
{[%clk 00:04:16]} {[%emt 00:00:24]} 18. Na4 {[%clk 00:03:13]} {[%emt 00:00:13]}
Rxc1 {[%clk 00:03:58]} {[%emt 00:00:21]} 19. Rxc1 {[%clk 00:03:13]} {[%emt
00:00:01]} f6 {[%clk 00:03:58]} 20. Nd3 {[%clk 00:03:07]} {[%emt 00:00:09]} Kg7
{[%clk 00:03:48]} {[%emt 00:00:13]} 21. f4 {[%clk 00:03:02]} {[%emt 00:00:08]}
h6 {[%clk 00:03:41]} {[%emt 00:00:11]} 22. f5 {[%clk 00:02:58]} {[%emt
00:00:07]} Nxf5 {[%clk 00:03:36]} {[%emt 00:00:08]} 23. Bf2 {[%clk 00:02:58]}
{[%emt 00:00:02]} Nd6 {[%clk 00:03:36]} {[%emt 00:00:02]} 24. Bh3 {[%clk
00:02:47]} {[%emt 00:00:14]} Bc8 {[%clk 00:03:23]} {[%emt 00:00:16]} 25. Qc2
{[%clk 00:02:36]} {[%emt 00:00:14]} Bd7 {[%clk 00:03:17]} {[%emt 00:00:09]} 26.
Qc7 {[%clk 00:02:35]} {[%emt 00:00:04]} Bxa4 {[%clk 00:03:07]} {[%emt
00:00:14]} 27. Bxe6 {[%clk 00:02:27]} {[%emt 00:00:11]} Nc4 {[%clk 00:02:38]}
{[%emt 00:00:32]} 28. Rxc4 {[%clk 00:02:14]} {[%emt 00:00:16]} dxc4 {[%clk
00:02:37]} {[%emt 00:00:03]} 29. Qxc4 {[%clk 00:02:14]} {[%emt 00:00:02]} Bb5
{[%clk 00:02:37]} {[%emt 00:00:01]} 30. Qb3 {[%clk 00:02:14]} {[%emt 00:00:02]}
Bxd3 {[%clk 00:02:36]} {[%emt 00:00:05]} 31. Qxd3 {[%clk 00:02:14]} {[%emt
00:00:01]} Qd6 {[%clk 00:02:05]} {[%emt 00:00:33]} 32. Bb3 {[%emt 00:00:05]} f5
{[%clk 00:02:05]} 33. d5 {[%clk 00:01:34]} {[%emt 00:00:42]} b5 {[%clk
00:01:58]} {[%emt 00:00:10]} 34. Bc5 {[%clk 00:01:34]} {[%emt 00:00:02]} Qd7
{[%clk 00:01:47]} {[%emt 00:00:14]} 35. d6 {[%clk 00:01:34]} {[%emt 00:00:03]}
Bf6 {[%clk 00:01:47]} {[%emt 00:00:01]} 36. Bd5 {[%clk 00:01:25]} {[%emt
00:00:12]} Nc6 {[%clk 00:01:47]} {[%emt 00:00:03]} 37. e3 {[%clk 00:01:23]}
{[%emt 00:00:05]} Ne5 {[%clk 00:01:47]} {[%emt 00:00:02]} 38. Qb3 {[%clk
00:01:23]} {[%emt 00:00:02]} Re8 {[%clk 00:01:44]} {[%emt 00:00:06]} 39. Qd1
{[%clk 00:01:17]} {[%emt 00:00:09]} g4 {[%clk 00:01:42]} {[%emt 00:00:06]} 40.
e4 {[%clk 00:01:17]} {[%emt 00:00:04]} Nf3+ {[%clk 00:01:32]} {[%emt 00:00:13]}
41. Kg2 {[%clk 00:01:17]} fxe4 {[%clk 00:01:32]} 42. Be3 {[%clk 00:01:11]}
{[%emt 00:00:09]} Ng5 {[%clk 00:01:28]} {[%emt 00:00:06]} 43. Bf4 {[%clk
00:01:07]} {[%emt 00:00:08]} Nh3 {[%clk 00:01:28]} {[%emt 00:00:02]} 44. Be3
{[%clk 00:01:05]} {[%emt 00:00:05]} Qf5 {[%clk 00:01:21]} {[%emt 00:00:11]} 45.
Bc6 {[%clk 00:00:45]} {[%emt 00:00:22]} Qf3+ {[%clk 00:01:21]} {[%emt
00:00:03]} 46. Qxf3 {[%clk 00:00:45]} {[%emt 00:00:01]} exf3+ {[%clk 00:01:21]}
47. Kf1 {[%clk 00:00:45]} {[%emt 00:00:03]} Rxe3 {[%clk 00:01:21]} {[%emt
00:00:01]} 48. d7 {[%clk 00:00:41]} {[%emt 00:00:07]} Rd3 {[%clk 00:01:21]} 0-1

[Event "14e Open International de Quenza"]
[Site "Quenza, France"]
[Date "????.??.??"]
[Round "3.3"]
[White "Lagarde, Maxime"]
[Black "Deladerriere, Apollo"]
[Result "1/2-1/2"]
[TimeControl "5min+3s"]
[WhiteElo "2618"]
[BlackElo "2131"]

1. e4 {[%clk 00:05:03]} {[%emt 00:12:23]} c6 {[%clk 00:05:03]} 2. Nf3 {[%clk
00:05:03]} {[%emt 00:00:03]} d5 {[%clk 00:05:03]} {[%emt 00:00:01]} 3. d3
{[%clk 00:05:03]} Nf6 {[%clk 00:04:59]} {[%emt 00:00:08]} 4. e5 {[%clk
00:04:56]} {[%emt 00:00:11]} Nfd7 {[%clk 00:04:59]} 5. d4 {[%clk 00:04:51]}
{[%emt 00:00:08]} e6 {[%clk 00:04:59]} {[%emt 00:00:03]} 6. Bd3 {[%clk
00:04:50]} {[%emt 00:00:04]} c5 {[%clk 00:04:58]} {[%emt 00:00:04]} 7. c3
{[%clk 00:04:50]} {[%emt 00:00:01]} b6 {[%clk 00:04:58]} {[%emt 00:00:03]} 8.
Nbd2 {[%clk 00:04:28]} {[%emt 00:00:25]} Ba6 {[%clk 00:04:58]} {[%emt
00:00:03]} 9. Nf1 {[%clk 00:04:24]} {[%emt 00:00:06]} Bxd3 {[%clk 00:04:52]}
{[%emt 00:00:09]} 10. Qxd3 {[%clk 00:04:24]} {[%emt 00:00:02]} Nc6 {[%clk
00:04:52]} 11. a3 {[%clk 00:04:23]} {[%emt 00:00:04]} a5 {[%clk 00:04:48]}
{[%emt 00:00:07]} 12. Ng3 {[%clk 00:04:22]} {[%emt 00:00:03]} cxd4 {[%clk
00:04:40]} {[%emt 00:00:11]} 13. cxd4 {[%emt 00:00:01]} a4 14. O-O {[%clk
00:04:09]} {[%emt 00:00:16]} Na5 {[%clk 00:04:38]} {[%emt 00:00:05]} 15. Bd2
{[%clk 00:04:06]} {[%emt 00:00:06]} Nb3 {[%clk 00:04:35]} {[%emt 00:00:06]} 16.
Rad1 {[%clk 00:04:06]} Be7 {[%clk 00:04:10]} {[%emt 00:00:28]} 17. Nh5 {[%clk
00:03:53]} {[%emt 00:00:15]} g6 {[%clk 00:04:10]} {[%emt 00:00:03]} 18. Nf4
{[%clk 00:03:31]} {[%emt 00:00:25]} Rc8 {[%clk 00:04:07]} {[%emt 00:00:07]} 19.
g3 {[%clk 00:03:12]} {[%emt 00:00:22]} Qc7 {[%clk 00:03:58]} {[%emt 00:00:12]}
20. h4 {[%clk 00:03:07]} {[%emt 00:00:07]} Qc2 {[%clk 00:03:52]} {[%emt
00:00:09]} 21. Qe3 {[%clk 00:02:52]} {[%emt 00:00:18]} Qxb2 {[%clk 00:03:27]}
{[%emt 00:00:29]} 22. Nd3 {[%clk 00:02:34]} {[%emt 00:00:21]} Qxa3 {[%clk
00:03:12]} {[%emt 00:00:18]} 23. Ng5 {[%clk 00:02:23]} {[%emt 00:00:14]} Bxg5
{[%clk 00:03:00]} {[%emt 00:00:15]} 24. Qxg5 {[%clk 00:02:20]} {[%emt
00:00:06]} Nxd4 {[%clk 00:02:59]} {[%emt 00:00:04]} 25. Qe3 {[%clk 00:01:56]}
{[%emt 00:00:27]} Nf5 {[%clk 00:02:59]} {[%emt 00:00:04]} 26. Qe2 {[%clk
00:01:56]} {[%emt 00:00:02]} Nd4 {[%clk 00:02:58]} {[%emt 00:00:04]} 27. Qe3
{[%clk 00:01:56]} {[%emt 00:00:03]} Nf5 {[%clk 00:02:58]} 28. Qe2 {[%clk
00:01:52]} {[%emt 00:00:07]} Nd4 {[%clk 00:02:58]} 29. Qe3 Nf5 {[%clk
00:02:58]} 30. Qe2 Nd4 {[%clk 00:02:58]} 1/2-1/2

[Event "14e Open International de Quenza"]
[Site "Quenza, France"]
[Date "????.??.??"]
[Round "3.4"]
[White "Thorsteinsdottir, Hallgerdur"]
[Black "Fressinet, Laurent"]
[Result "0-1"]
[TimeControl "5min+3s"]
[WhiteElo "2004"]
[BlackElo "2605"]

1. e4 {[%clk 00:05:03]} {[%emt 00:20:24]} e5 {[%clk 00:05:03]} {[%emt
00:00:01]} 2. Nf3 {[%clk 00:05:03]} {[%emt 00:00:01]} Nc6 {[%clk 00:05:03]}
{[%emt 00:00:01]} 3. Bc4 {[%clk 00:05:03]} {[%emt 00:00:01]} Nf6 {[%clk
00:05:03]} {[%emt 00:00:02]} 4. d3 {[%clk 00:05:03]} {[%emt 00:00:01]} Bc5
{[%clk 00:05:03]} {[%emt 00:00:01]} 5. c3 {[%clk 00:04:59]} {[%emt 00:00:07]}
d6 {[%clk 00:05:03]} {[%emt 00:00:02]} 6. a4 {[%clk 00:04:42]} {[%emt
00:00:20]} a6 {[%clk 00:05:03]} {[%emt 00:00:02]} 7. O-O {[%clk 00:04:40]}
{[%emt 00:00:05]} Ba7 {[%clk 00:05:03]} {[%emt 00:00:02]} 8. a5 {[%clk
00:04:20]} {[%emt 00:00:24]} Ne7 {[%clk 00:05:02]} {[%emt 00:00:04]} 9. Nbd2
{[%clk 00:04:01]} {[%emt 00:00:22]} Ng6 {[%clk 00:05:01]} {[%emt 00:00:04]} 10.
Re1 {[%clk 00:03:54]} {[%emt 00:00:11]} O-O {[%clk 00:04:57]} {[%emt 00:00:07]}
11. Nf1 {[%clk 00:03:48]} {[%emt 00:00:09]} c6 {[%clk 00:04:57]} {[%emt
00:00:02]} 12. Bb3 {[%clk 00:03:12]} {[%emt 00:00:39]} d5 {[%clk 00:04:55]}
{[%emt 00:00:05]} 13. exd5 {[%clk 00:02:42]} {[%emt 00:00:33]} Nxd5 {[%clk
00:04:55]} {[%emt 00:00:02]} 14. Ng3 {[%clk 00:02:02]} {[%emt 00:00:43]} Re8
{[%clk 00:04:41]} {[%emt 00:00:17]} 15. h3 {[%clk 00:01:39]} {[%emt 00:00:25]}
h6 {[%clk 00:04:11]} {[%emt 00:00:33]} 16. Ra4 {[%clk 00:01:25]} {[%emt
00:00:17]} Be6 {[%clk 00:03:53]} {[%emt 00:00:21]} 17. Rae4 {[%clk 00:00:19]}
{[%emt 00:01:09]} Nf6 {[%clk 00:03:49]} {[%emt 00:00:07]} 18. R4e2 {[%clk
00:00:19]} {[%emt 00:00:01]} Bxb3 {[%clk 00:03:38]} {[%emt 00:00:14]} 19. Qxb3
{[%clk 00:00:19]} {[%emt 00:00:01]} Qc7 {[%clk 00:03:12]} {[%emt 00:00:29]} 20.
Be3 {[%clk 00:00:16]} {[%emt 00:00:06]} Bxe3 {[%clk 00:03:04]} {[%emt
00:00:11]} 21. Rxe3 {[%clk 00:00:16]} {[%emt 00:00:03]} Rad8 {[%clk 00:03:04]}
22. Ne4 {[%clk 00:00:15]} {[%emt 00:00:05]} Nd5 {[%clk 00:03:04]} {[%emt
00:00:02]} 23. R3e2 {[%clk 00:00:15]} {[%emt 00:00:02]} Ndf4 {[%clk 00:03:03]}
{[%emt 00:00:03]} 24. Re3 {[%clk 00:00:14]} {[%emt 00:00:04]} Nxd3 {[%clk
00:02:50]} {[%emt 00:00:16]} 25. Rd1 {[%clk 00:00:14]} {[%emt 00:00:03]} Ndf4
{[%clk 00:02:45]} {[%emt 00:00:07]} 26. Rxd8 {[%clk 00:00:10]} {[%emt
00:00:07]} Rxd8 {[%clk 00:02:45]} {[%emt 00:00:01]} 27. Nc5 {[%clk 00:00:10]}
{[%emt 00:00:03]} Qe7 {[%clk 00:01:58]} {[%emt 00:00:49]} 28. Nxb7 {[%clk
00:00:06]} {[%emt 00:00:08]} Rb8 {[%clk 00:01:58]} {[%emt 00:00:01]} 29. Nd4
{[%clk 00:00:04]} {[%emt 00:00:06]} Qxb7 {[%clk 00:01:47]} {[%emt 00:00:14]} 30.
Qc4 {[%clk 00:00:04]} {[%emt 00:00:02]} exd4 {[%clk 00:01:47]} {[%emt
00:00:03]} 0-1

[Event "14e Open International de Quenza"]
[Site "Quenza, France"]
[Date "????.??.??"]
[Round "3.5"]
[White "Hou, Yifan"]
[Black "De Seroux, Camille"]
[Result "1-0"]
[TimeControl "5min+3s"]
[WhiteElo "2633"]
[BlackElo "2039"]

1. c4 {[%clk 00:05:03]} {[%emt 00:00:02]} Nc6 {[%clk 00:04:52]} {[%emt
00:00:15]} 2. Nc3 {[%clk 00:04:52]} {[%emt 00:00:14]} Nf6 {[%clk 00:04:46]}
{[%emt 00:00:09]} 3. d4 {[%clk 00:04:36]} {[%emt 00:00:20]} e5 {[%clk
00:04:44]} {[%emt 00:00:05]} 4. d5 {[%clk 00:04:35]} {[%emt 00:00:04]} Ne7
{[%clk 00:04:42]} {[%emt 00:00:05]} 5. e4 {[%clk 00:04:31]} {[%emt 00:00:07]}
Ng6 {[%clk 00:04:40]} {[%emt 00:00:05]} 6. a3 {[%clk 00:04:29]} {[%emt
00:00:05]} a5 {[%clk 00:04:36]} {[%emt 00:00:06]} 7. Be3 {[%clk 00:04:29]}
{[%emt 00:00:03]} Be7 {[%clk 00:04:09]} {[%emt 00:00:30]} 8. Bd3 {[%clk
00:04:18]} {[%emt 00:00:14]} d6 {[%clk 00:04:01]} {[%emt 00:00:11]} 9. Nge2
{[%clk 00:04:09]} {[%emt 00:00:12]} O-O {[%clk 00:03:50]} {[%emt 00:00:13]} 10.
h3 {[%clk 00:04:01]} {[%emt 00:00:11]} Ne8 {[%clk 00:03:13]} {[%emt 00:00:40]}
11. Qd2 {[%clk 00:03:40]} {[%emt 00:00:25]} Nh4 {[%clk 00:02:49]} {[%emt
00:00:27]} 12. Kf1 {[%clk 00:02:26]} {[%emt 00:01:17]} f5 {[%clk 00:02:46]}
{[%emt 00:00:06]} 13. g3 {[%clk 00:02:26]} {[%emt 00:00:03]} Nf3 {[%clk
00:02:16]} {[%emt 00:00:32]} 14. Qc2 {[%clk 00:02:26]} {[%emt 00:00:02]} Bg5
{[%clk 00:01:49]} {[%emt 00:00:29]} 15. exf5 {[%clk 00:01:28]} {[%emt
00:01:01]} Bxe3 {[%clk 00:01:23]} {[%emt 00:00:29]} 16. fxe3 {[%clk 00:01:28]}
Qg5 {[%clk 00:01:20]} {[%emt 00:00:05]} 17. e4 {[%clk 00:01:09]} {[%emt
00:00:22]} Qe3 {[%clk 00:01:02]} {[%emt 00:00:22]} 18. Kg2 {[%clk 00:01:09]}
{[%emt 00:00:03]} Nf6 {[%clk 00:00:55]} {[%emt 00:00:09]} 19. Rhf1 {[%clk
00:00:57]} {[%emt 00:00:15]} Nd2 {[%clk 00:00:46]} {[%emt 00:00:12]} 20. Rf2
{[%clk 00:00:45]} {[%emt 00:00:16]} Nh5 {[%clk 00:00:31]} {[%emt 00:00:19]} 21.
Rd1 {[%clk 00:00:35]} {[%emt 00:00:13]} Bxf5 {[%clk 00:00:14]} {[%emt
00:00:19]} 22. exf5 {[%clk 00:00:31]} {[%emt 00:00:07]} e4 {[%clk 00:00:14]}
{[%emt 00:00:02]} 23. Qxd2 {[%clk 00:00:20]} {[%emt 00:00:14]} Qxd2 {[%clk
00:00:05]} {[%emt 00:00:12]} 24. Rxd2 {[%clk 00:00:20]} {[%emt 00:00:01]} exd3
{[%clk 00:00:05]} {[%emt 00:00:02]} 25. Rxd3 {[%clk 00:00:20]} Rae8 {[%clk
00:00:05]} {[%emt 00:00:01]} 1-0

[Event "14e Open International de Quenza"]
[Site "Quenza, France"]
[Date "????.??.??"]
[Round "3.6"]
[White "Stoenescu, Radu"]
[Black "Maurizzi, Marc Andria"]
[Result "0-1"]
[TimeControl "5min+3s"]
[WhiteElo "2009"]
[BlackElo "2604"]

1. e4 {[%clk 00:05:03]} {[%emt 00:00:01]} c6 {[%clk 00:05:03]} {[%emt
00:00:01]} 2. d4 {[%clk 00:05:03]} {[%emt 00:00:02]} d5 {[%clk 00:05:03]}
{[%emt 00:00:01]} 3. e5 {[%clk 00:05:03]} {[%emt 00:00:01]} Bf5 {[%clk
00:05:03]} {[%emt 00:00:03]} 4. Nf3 {[%clk 00:05:03]} {[%emt 00:00:02]} e6
{[%clk 00:05:03]} {[%emt 00:00:01]} 5. Be2 {[%clk 00:05:03]} Ne7 {[%clk
00:05:03]} 6. Be3 {[%clk 00:05:03]} {[%emt 00:00:01]} Ng6 {[%clk 00:04:59]}
{[%emt 00:00:07]} 7. c3 {[%clk 00:04:48]} {[%emt 00:00:19]} Nd7 {[%clk
00:04:59]} {[%emt 00:00:02]} 8. b4 {[%clk 00:04:47]} {[%emt 00:00:04]} f6
{[%clk 00:04:59]} {[%emt 00:00:02]} 9. exf6 {[%clk 00:04:46]} {[%emt 00:00:04]}
Qxf6 {[%clk 00:04:59]} {[%emt 00:00:01]} 10. Nbd2 {[%clk 00:04:43]} {[%emt
00:00:06]} Bd6 {[%clk 00:04:59]} {[%emt 00:00:03]} 11. Nf1 {[%clk 00:04:18]}
{[%emt 00:00:28]} e5 {[%clk 00:04:25]} {[%emt 00:00:37]} 12. Ng3 {[%clk
00:04:05]} {[%emt 00:00:15]} e4 {[%clk 00:04:21]} {[%emt 00:00:07]} 13. Nxf5
{[%clk 00:04:05]} {[%emt 00:00:02]} Qxf5 {[%clk 00:04:21]} {[%emt 00:00:02]} 14.
Nd2 {[%clk 00:04:00]} {[%emt 00:00:09]} Nh4 {[%clk 00:04:14]} {[%emt 00:00:09]}
15. Bf1 {[%clk 00:03:32]} {[%emt 00:00:32]} O-O {[%clk 00:04:06]} {[%emt
00:00:11]} 16. g3 {[%clk 00:03:31]} {[%emt 00:00:04]} Ng6 {[%clk 00:04:06]}
{[%emt 00:00:01]} 17. h4 {[%clk 00:03:31]} {[%emt 00:00:03]} Qf7 {[%clk
00:03:45]} {[%emt 00:00:23]} 18. h5 {[%clk 00:03:20]} {[%emt 00:00:14]} Ne7
{[%clk 00:03:45]} 19. Qg4 {[%clk 00:03:08]} {[%emt 00:00:15]} Nf5 {[%clk
00:03:37]} {[%emt 00:00:11]} 20. Rh2 {[%clk 00:02:24]} {[%emt 00:00:47]} Bxg3
{[%clk 00:03:20]} {[%emt 00:00:20]} 21. fxg3 {[%clk 00:01:00]} {[%emt
00:01:27]} Nxe3 {[%emt 00:00:01]} 22. Qh3 Nc2+ {[%clk 00:03:17]} {[%emt
00:00:05]} 23. Kd1 {[%clk 00:01:00]} Nxa1 {[%clk 00:03:17]} {[%emt 00:00:03]}
24. Kc1 {[%clk 00:01:00]} e3 {[%clk 00:03:17]} {[%emt 00:00:03]} 0-1